[Event "Titled Tuesday Blitz June 13 Early 2023"]
[White "Bashkansky, Ethan"]
[Black "Taboas Rodriguez, Daniel"]
[WhiteFideId "2071533"]
[BlackFideId "2208466"]
[WhiteElo "2328"]
[BlackElo "2365"]
[Result "1-0"]
[Round "8"]
[TimeControl "180+2"]
[Date "2023.06.13"]
[WhiteClock "0:00:15"]
[BlackClock "0:00:04"]
[Board "133"]

1. d4 {[%clk 0:02:41]}  Nf6 {[%clk 0:02:59]} 2. c4 {[%clk 0:02:41]}  g6 {[%clk 0:02:59]} 3. Nc3 {[%clk 0:02:40]}  Bg7 {[%clk 0:03:00]} 4. e4 {[%clk 0:02:40]}  d6 {[%clk 0:02:59]} 5. f3 {[%clk 0:02:39]}  O-O {[%clk 0:03:00]} 6. Be3 {[%clk 0:02:39]}  c5 {[%clk 0:03:00]} 7. dxc5 {[%clk 0:02:39]}  dxc5 {[%clk 0:03:01]} 8. Qxd8 {[%clk 0:02:40]}  Rxd8 {[%clk 0:03:01]} 9. Bxc5 {[%clk 0:02:40]}  Nc6 {[%clk 0:03:02]} 10. Nd5 {[%clk 0:02:39]}  e6 {[%clk 0:02:39]} 11. Ne7+ {[%clk 0:02:31]}  Nxe7 {[%clk 0:02:38]} 12. Bxe7 {[%clk 0:02:32]}  Rd7 {[%clk 0:02:37]} 13. Ba3 {[%clk 0:02:24]}  b6 {[%clk 0:02:36]} 14. Nh3 {[%clk 0:02:22]}  Ba6 {[%clk 0:02:36]} 15. Rd1 {[%clk 0:01:52]}  Rxd1+ {[%clk 0:02:29]} 16. Kxd1 {[%clk 0:01:53]}  Nd7 {[%clk 0:02:15]} 17. b3 {[%clk 0:01:39]}  f5 {[%clk 0:02:13]} 18. Nf4 {[%clk 0:01:30]}  fxe4 {[%clk 0:02:12]} 19. Nxe6 {[%clk 0:01:27]}  exf3 {[%clk 0:01:54]} 20. Nxg7 {[%clk 0:01:27]}  Kxg7 {[%clk 0:01:52]} 21. gxf3 {[%clk 0:01:25]}  Bb7 {[%clk 0:01:52]} 22. Bg2 {[%clk 0:01:08]}  Kh6 {[%clk 0:01:50]} 23. Re1 {[%clk 0:01:07]}  Rd8 {[%clk 0:01:11]} 24. Re7 {[%clk 0:00:57]}  Ne5+ {[%clk 0:01:01]} 25. Ke2 {[%clk 0:00:53]}  Nd3 {[%clk 0:00:36]} 26. Rxb7 {[%clk 0:00:43]}  Nf4+ {[%clk 0:00:36]} 27. Kf2 {[%clk 0:00:32]}  Rd2+ {[%clk 0:00:36]} 28. Ke3 {[%clk 0:00:26]}  Rxa2 {[%clk 0:00:32]} 29. Kxf4 {[%clk 0:00:25]}  Rxa3 {[%clk 0:00:32]} 30. Kg3 {[%clk 0:00:19]}  Rxb3 {[%clk 0:00:29]} 31. Rxa7 {[%clk 0:00:19]}  Rb4 {[%clk 0:00:27]} 32. Bf1 {[%clk 0:00:19]}  g5 {[%clk 0:00:25]} 33. Rc7 {[%clk 0:00:17]}  Kg6 {[%clk 0:00:24]} 34. Rc6+ {[%clk 0:00:17]}  Kg7 {[%clk 0:00:23]} 35. Bd3 {[%clk 0:00:17]}  Rb3 {[%clk 0:00:20]} 36. Be4 {[%clk 0:00:15]}  Rb4 {[%clk 0:00:18]} 37. Rc7+ {[%clk 0:00:15]}  Kf6 {[%clk 0:00:18]} 38. Bxh7 {[%clk 0:00:14]}  b5 {[%clk 0:00:18]} 39. c5 {[%clk 0:00:14]}  Rc4 {[%clk 0:00:17]} 40. c6 {[%clk 0:00:15]}  b4 {[%clk 0:00:18]} 41. Be4 {[%clk 0:00:15]}  Ke5 {[%clk 0:00:15]} 42. Rb7 {[%clk 0:00:15]}  Kd6 {[%clk 0:00:16]} 43. Rb5 {[%clk 0:00:15]}  g4 {[%clk 0:00:04]} 44. Kxg4 {[%clk 0:00:15]} 1-0


[Site "https://www.chess.com"]

[Event "Titled Tuesday Blitz June 13 Early 2023"]
[White "Ladan, Nicholas"]
[Black "Vifleemskaia, Svetlana"]
[WhiteFideId "30918855"]
[BlackFideId "4129490"]
[WhiteElo "2167"]
[BlackElo "1930"]
[Result "0-1"]
[Round "8"]
[TimeControl "180+2"]
[Date "2023.06.13"]
[WhiteClock "0:00:04"]
[BlackClock "0:00:42"]
[Board "135"]

1. b4 {[%clk 0:03:00]}  e5 {[%clk 0:02:56]} 2. Bb2 {[%clk 0:03:00]}  Bxb4 {[%clk 0:02:57]} 3. Bxe5 {[%clk 0:03:00]}  Nf6 {[%clk 0:02:57]} 4. c3 {[%clk 0:02:59]}  Ba5 {[%clk 0:02:56]} 5. g3 {[%clk 0:02:57]}  Nc6 {[%clk 0:02:56]} 6. Bxf6 {[%clk 0:02:56]}  Qxf6 {[%clk 0:02:56]} 7. Bg2 {[%clk 0:02:57]}  O-O {[%clk 0:02:54]} 8. Nf3 {[%clk 0:02:56]}  Re8 {[%clk 0:02:53]} 9. e3 {[%clk 0:02:54]}  d5 {[%clk 0:02:53]} 10. Nd4 {[%clk 0:02:50]}  Nxd4 {[%clk 0:02:50]} 11. cxd4 {[%clk 0:02:47]}  Qxd4 {[%clk 0:02:50]} 12. Na3 {[%clk 0:02:32]}  Bxd2+ {[%clk 0:02:27]} 13. Qxd2 {[%clk 0:02:01]}  Qxa1+ {[%clk 0:02:26]} 14. Ke2 {[%clk 0:01:58]}  Qe5 {[%clk 0:02:26]} 15. Bxd5 {[%clk 0:01:42]}  Bg4+ {[%clk 0:02:15]} 16. f3 {[%clk 0:01:39]}  c6 {[%clk 0:02:13]} 17. Bxf7+ {[%clk 0:01:32]}  Kxf7 {[%clk 0:02:13]} 18. fxg4 {[%clk 0:01:32]}  Rad8 {[%clk 0:02:08]} 19. Qc1 {[%clk 0:01:08]}  Kg8 {[%clk 0:01:51]} 20. Nc4 {[%clk 0:00:53]}  Qe4 {[%clk 0:01:48]} 21. Rf1 {[%clk 0:00:43]}  Qxg4+ {[%clk 0:01:46]} 22. Ke1 {[%clk 0:00:38]}  b5 {[%clk 0:01:37]} 23. Rf4 {[%clk 0:00:36]}  Qh3 {[%clk 0:01:31]} 24. Nd2 {[%clk 0:00:28]}  Rxe3+ {[%clk 0:01:23]} 25. Kf2 {[%clk 0:00:28]}  Rde8 {[%clk 0:01:04]} 26. Nf1 {[%clk 0:00:04]}  Re2+ {[%clk 0:01:03]} 27. Kf3 {[%clk 0:00:05]}  Qh5+ {[%clk 0:00:53]} 28. g4 {[%clk 0:00:04]}  Qh3+ {[%clk 0:00:51]} 29. Ng3 {[%clk 0:00:04]}  Qg2# {[%clk 0:00:42]} 0-1


[Site "https://www.chess.com"]

[Event "Titled Tuesday Blitz June 13 Early 2023"]
[White "Afanasieva, Alexandra"]
[Black "Kovalevsky, Stanislav"]
[WhiteFideId "34126926"]
[BlackFideId "13508598"]
[WhiteElo "1736"]
[BlackElo "2112"]
[Result "1-0"]
[Round "8"]
[TimeControl "180+2"]
[Date "2023.06.13"]
[WhiteClock "0:00:06"]
[BlackClock "0:01:33"]
[Board "136"]

1. e4 {[%clk 0:02:59]}  e6 {[%clk 0:03:00]} 2. d4 {[%clk 0:02:59]}  d5 {[%clk 0:03:00]} 3. Nc3 {[%clk 0:03:00]}  dxe4 {[%clk 0:03:00]} 4. Nxe4 {[%clk 0:03:00]}  Nf6 {[%clk 0:03:01]} 5. Nxf6+ {[%clk 0:03:00]}  gxf6 {[%clk 0:03:02]} 6. Nf3 {[%clk 0:02:59]}  Nc6 {[%clk 0:03:02]} 7. Bb5 {[%clk 0:02:57]}  Bd7 {[%clk 0:02:59]} 8. Bf4 {[%clk 0:02:47]}  Rg8 {[%clk 0:02:58]} 9. g3 {[%clk 0:02:38]}  Ne7 {[%clk 0:02:55]} 10. Bxd7+ {[%clk 0:02:21]}  Qxd7 {[%clk 0:02:56]} 11. c4 {[%clk 0:02:21]}  O-O-O {[%clk 0:02:49]} 12. Qb3 {[%clk 0:02:09]}  Nf5 {[%clk 0:02:38]} 13. O-O-O {[%clk 0:02:07]}  Bh6 {[%clk 0:02:29]} 14. Bxh6 {[%clk 0:02:04]}  Nxh6 {[%clk 0:02:30]} 15. h3 {[%clk 0:01:59]}  Nf5 {[%clk 0:02:26]} 16. Kb1 {[%clk 0:01:55]}  Qc6 {[%clk 0:02:19]} 17. d5 {[%clk 0:01:44]}  Qc5 {[%clk 0:02:18]} 18. g4 {[%clk 0:01:26]}  Nd6 {[%clk 0:02:11]} 19. Rc1 {[%clk 0:01:14]}  Ne4 {[%clk 0:02:04]} 20. Rhd1 {[%clk 0:00:58]}  Nxf2 {[%clk 0:01:38]} 21. Rd2 {[%clk 0:00:35]}  Nxh3 {[%clk 0:01:38]} 22. Nd4 {[%clk 0:00:29]}  Rxg4 {[%clk 0:01:36]} 23. Nxe6 {[%clk 0:00:14]}  fxe6 {[%clk 0:01:34]} 24. Qxh3 {[%clk 0:00:15]}  Rxc4 {[%clk 0:01:31]} 25. Rxc4 {[%clk 0:00:07]}  Qxc4 {[%clk 0:01:32]} 26. dxe6 {[%clk 0:00:07]}  Kb8 {[%clk 0:01:33]} 27. Rxd8# {[%clk 0:00:06]} 1-0


[Site "https://www.chess.com"]

[Event "Titled Tuesday Blitz June 13 Early 2023"]
[White "Orlov, Georgi"]
[Black "Seletsky, Grigory"]
[WhiteFideId "2011271"]
[BlackFideId "14112191"]
[WhiteElo "2608"]
[BlackElo "2491"]
[Result "1-0"]
[Round "8"]
[TimeControl "180+2"]
[Date "2023.06.13"]
[WhiteClock "0:01:59"]
[BlackClock "0:00:36"]
[Board "138"]

1. d4 {[%clk 0:02:53]}  d6 {[%clk 0:02:58]} 2. Nf3 {[%clk 0:02:50]}  Nf6 {[%clk 0:02:55]} 3. c3 {[%clk 0:02:48]}  Nbd7 {[%clk 0:02:52]} 4. Bg5 {[%clk 0:02:45]}  c5 {[%clk 0:02:48]} 5. Nbd2 {[%clk 0:02:43]}  cxd4 {[%clk 0:02:46]} 6. cxd4 {[%clk 0:02:43]}  d5 {[%clk 0:02:45]} 7. e3 {[%clk 0:02:42]}  e6 {[%clk 0:02:45]} 8. Bd3 {[%clk 0:02:42]}  Be7 {[%clk 0:02:45]} 9. O-O {[%clk 0:02:38]}  O-O {[%clk 0:02:46]} 10. Rc1 {[%clk 0:02:38]}  b6 {[%clk 0:02:46]} 11. Qa4 {[%clk 0:02:33]}  Bb7 {[%clk 0:02:43]} 12. Ba6 {[%clk 0:02:32]}  Bxa6 {[%clk 0:02:35]} 13. Qxa6 {[%clk 0:02:31]}  Rc8 {[%clk 0:02:08]} 14. a3 {[%clk 0:02:28]}  Rxc1 {[%clk 0:01:47]} 15. Rxc1 {[%clk 0:02:27]}  Qb8 {[%clk 0:01:41]} 16. Rc6 {[%clk 0:02:23]}  Re8 {[%clk 0:01:20]} 17. Bf4 {[%clk 0:02:17]}  Qa8 {[%clk 0:01:19]} 18. Rc7 {[%clk 0:02:13]}  h6 {[%clk 0:01:12]} 19. h3 {[%clk 0:02:11]}  Nf8 {[%clk 0:01:01]} 20. Rxa7 {[%clk 0:02:09]}  Qd8 {[%clk 0:00:58]} 21. Ne5 {[%clk 0:02:08]}  N6d7 {[%clk 0:00:47]} 22. Nc6 {[%clk 0:02:04]}  Nb8 {[%clk 0:00:36]} 23. Bxb8 {[%clk 0:01:59]} 1-0


[Site "https://www.chess.com"]

[Event "Titled Tuesday Blitz June 13 Early 2023"]
[White "Chakravarthi Reddy, M"]
[Black "Mamedov, Edgar"]
[WhiteFideId "25009532"]
[BlackFideId "13739980"]
[WhiteElo "2201"]
[BlackElo "2317"]
[Result "0-1"]
[Round "8"]
[TimeControl "180+2"]
[Date "2023.06.13"]
[WhiteClock "0:00:56"]
[BlackClock "0:01:41"]
[Board "139"]

1. e4 {[%clk 0:03:00]}  c5 {[%clk 0:02:59]} 2. Nf3 {[%clk 0:03:01]}  e6 {[%clk 0:02:58]} 3. d4 {[%clk 0:03:01]}  cxd4 {[%clk 0:02:58]} 4. Nxd4 {[%clk 0:03:01]}  Nf6 {[%clk 0:02:59]} 5. Nc3 {[%clk 0:03:02]}  Nc6 {[%clk 0:02:58]} 6. Be2 {[%clk 0:03:03]}  Bb4 {[%clk 0:02:56]} 7. f3 {[%clk 0:02:45]}  d5 {[%clk 0:02:52]} 8. O-O {[%clk 0:02:27]}  Bc5 {[%clk 0:02:47]} 9. Be3 {[%clk 0:02:15]}  e5 {[%clk 0:02:46]} 10. exd5 {[%clk 0:02:11]}  Nxd4 {[%clk 0:02:44]} 11. Kh1 {[%clk 0:02:05]}  O-O {[%clk 0:02:42]} 12. Bc4 {[%clk 0:02:01]}  Bf5 {[%clk 0:02:37]} 13. Rc1 {[%clk 0:02:00]}  Rc8 {[%clk 0:02:35]} 14. f4 {[%clk 0:01:55]}  Nxc2 {[%clk 0:02:08]} 15. Bxc5 {[%clk 0:01:26]}  Rxc5 {[%clk 0:02:07]} 16. fxe5 {[%clk 0:01:16]}  Ne3 {[%clk 0:01:51]} 17. Qd4 {[%clk 0:01:13]}  Nfg4 {[%clk 0:01:43]} 18. Qxc5 {[%clk 0:01:07]}  Qh4 {[%clk 0:01:42]} 19. h3 {[%clk 0:01:00]}  Qg3 {[%clk 0:01:42]} 20. hxg4 {[%clk 0:00:56]}  Qxg2# {[%clk 0:01:41]} 0-1


[Site "https://www.chess.com"]

[Event "Titled Tuesday Blitz June 13 Early 2023"]
[White "Novikova, Margarita"]
[Black "Tinmaz, Kerem"]
[WhiteFideId "14109689"]
[BlackFideId "44559151"]
[WhiteElo "2013"]
[BlackElo "2153"]
[Result "1-0"]
[Round "8"]
[TimeControl "180+2"]
[Date "2023.06.13"]
[WhiteClock "0:00:13"]
[BlackClock "0:00:01"]
[Board "145"]

1. e4 {[%clk 0:03:00]}  c5 {[%clk 0:02:59]} 2. Nc3 {[%clk 0:03:01]}  e6 {[%clk 0:03:00]} 3. d3 {[%clk 0:03:01]}  Nc6 {[%clk 0:02:59]} 4. g3 {[%clk 0:03:02]}  g6 {[%clk 0:02:59]} 5. Be3 {[%clk 0:03:01]}  d6 {[%clk 0:02:58]} 6. Qd2 {[%clk 0:03:00]}  Bg7 {[%clk 0:02:58]} 7. Bg2 {[%clk 0:03:01]}  Nge7 {[%clk 0:02:58]} 8. Bh6 {[%clk 0:03:00]}  Bxh6 {[%clk 0:02:46]} 9. Qxh6 {[%clk 0:02:59]}  Qa5 {[%clk 0:02:47]} 10. Qg7 {[%clk 0:02:55]}  Rg8 {[%clk 0:02:47]} 11. Qxh7 {[%clk 0:02:55]}  b5 {[%clk 0:02:42]} 12. Kf1 {[%clk 0:02:33]}  Nd4 {[%clk 0:02:25]} 13. Rc1 {[%clk 0:02:22]}  b4 {[%clk 0:02:18]} 14. e5 {[%clk 0:02:20]}  d5 {[%clk 0:02:16]} 15. Nxd5 {[%clk 0:01:34]}  exd5 {[%clk 0:02:04]} 16. Bxd5 {[%clk 0:01:33]}  Nxd5 {[%clk 0:01:48]} 17. Qxg8+ {[%clk 0:01:33]}  Ke7 {[%clk 0:01:49]} 18. Qh8 {[%clk 0:01:10]}  Qxa2 {[%clk 0:01:38]} 19. Qh4+ {[%clk 0:01:08]}  Kd7 {[%clk 0:01:31]} 20. Ne2 {[%clk 0:01:04]}  Qxb2 {[%clk 0:01:25]} 21. Qg5 {[%clk 0:00:27]}  Ne6 {[%clk 0:00:49]} 22. Qd2 {[%clk 0:00:20]}  Bb7 {[%clk 0:00:45]} 23. Rg1 {[%clk 0:00:20]}  a5 {[%clk 0:00:43]} 24. f4 {[%clk 0:00:20]}  a4 {[%clk 0:00:43]} 25. Kf2 {[%clk 0:00:17]}  a3 {[%clk 0:00:43]} 26. Rb1 {[%clk 0:00:17]}  Nc3 {[%clk 0:00:03]} 27. Rxb2 {[%clk 0:00:15]}  axb2 {[%clk 0:00:04]} 28. Nxc3 {[%clk 0:00:14]}  bxc3 {[%clk 0:00:03]} 29. Qxc3 {[%clk 0:00:14]}  Ra1 {[%clk 0:00:02]} 30. Qxb2 {[%clk 0:00:13]}  Rxg1 {[%clk 0:00:01]} 31. Kxg1 {[%clk 0:00:13]} 1-0


[Site "https://www.chess.com"]

[Event "Titled Tuesday Blitz June 13 Early 2023"]
[White "Nikulina, Alena"]
[Black "Mayaud, Raphael"]
[WhiteFideId "4172051"]
[BlackFideId "627151"]
[WhiteElo "1608"]
[BlackElo "2191"]
[Result "0-1"]
[Round "8"]
[TimeControl "180+2"]
[Date "2023.06.13"]
[WhiteClock "0:00:00"]
[BlackClock "0:00:04"]
[Board "146"]

1. e4 {[%clk 0:03:00]}  d5 {[%clk 0:02:59]} 2. exd5 {[%clk 0:03:00]}  Qxd5 {[%clk 0:03:00]} 3. Nc3 {[%clk 0:02:59]}  Qa5 {[%clk 0:03:00]} 4. d4 {[%clk 0:02:57]}  c6 {[%clk 0:03:01]} 5. Nf3 {[%clk 0:02:57]}  Nf6 {[%clk 0:03:01]} 6. Bd2 {[%clk 0:02:42]}  Bf5 {[%clk 0:02:59]} 7. a3 {[%clk 0:02:34]}  e6 {[%clk 0:02:58]} 8. Ne5 {[%clk 0:02:31]}  Qc7 {[%clk 0:02:40]} 9. Bd3 {[%clk 0:02:23]}  Bxd3 {[%clk 0:02:36]} 10. Nxd3 {[%clk 0:02:22]}  Nbd7 {[%clk 0:02:35]} 11. Qf3 {[%clk 0:02:20]}  Bd6 {[%clk 0:02:29]} 12. O-O {[%clk 0:02:14]}  Bxh2+ {[%clk 0:02:28]} 13. Kh1 {[%clk 0:02:14]}  Bd6 {[%clk 0:02:28]} 14. b4 {[%clk 0:02:02]}  O-O {[%clk 0:02:28]} 15. Ne4 {[%clk 0:01:53]}  Nxe4 {[%clk 0:02:27]} 16. Qxe4 {[%clk 0:01:54]}  Nf6 {[%clk 0:02:21]} 17. Qh4 {[%clk 0:01:54]}  Rad8 {[%clk 0:01:55]} 18. c3 {[%clk 0:01:45]}  a5 {[%clk 0:01:46]} 19. Bg5 {[%clk 0:01:44]}  Be7 {[%clk 0:01:45]} 20. Ne5 {[%clk 0:01:38]}  axb4 {[%clk 0:01:45]} 21. axb4 {[%clk 0:01:38]}  Ra8 {[%clk 0:01:45]} 22. Ng4 {[%clk 0:01:15]}  Rxa1 {[%clk 0:01:14]} 23. Rxa1 {[%clk 0:01:08]}  Qd8 {[%clk 0:01:12]} 24. Ra7 {[%clk 0:00:52]}  Qb8 {[%clk 0:00:46]} 25. Ra5 {[%clk 0:00:34]}  Qd8 {[%clk 0:00:33]} 26. Ra7 {[%clk 0:00:28]}  Qb6 {[%clk 0:00:29]} 27. Nxf6+ {[%clk 0:00:23]}  Bxf6 {[%clk 0:00:22]} 28. Bxf6 {[%clk 0:00:22]}  gxf6 {[%clk 0:00:20]} 29. Ra5 {[%clk 0:00:20]}  f5 {[%clk 0:00:13]} 30. Qf6 {[%clk 0:00:16]}  Qd8 {[%clk 0:00:12]} 31. Qxd8 {[%clk 0:00:13]}  Rxd8 {[%clk 0:00:12]} 32. Ra7 {[%clk 0:00:13]}  Rd7 {[%clk 0:00:12]} 33. Kh2 {[%clk 0:00:14]}  Kf8 {[%clk 0:00:13]} 34. Kg3 {[%clk 0:00:14]}  Ke7 {[%clk 0:00:13]} 35. Kf4 {[%clk 0:00:15]}  Kf6 {[%clk 0:00:14]} 36. Ra2 {[%clk 0:00:13]}  Rd8 {[%clk 0:00:14]} 37. g3 {[%clk 0:00:13]}  h6 {[%clk 0:00:13]} 38. Ra1 {[%clk 0:00:13]}  Rd7 {[%clk 0:00:12]} 39. Rh1 {[%clk 0:00:13]}  Kg6 {[%clk 0:00:12]} 40. Re1 {[%clk 0:00:13]}  b6 {[%clk 0:00:11]} 41. Ra1 {[%clk 0:00:12]}  Rb7 {[%clk 0:00:11]} 42. Ra8 {[%clk 0:00:11]}  Kf6 {[%clk 0:00:11]} 43. Rc8 {[%clk 0:00:11]}  c5 {[%clk 0:00:11]} 44. dxc5 {[%clk 0:00:11]}  bxc5 {[%clk 0:00:12]} 45. Rxc5 {[%clk 0:00:11]}  Rd7 {[%clk 0:00:11]} 46. Rc4 {[%clk 0:00:09]}  Rd3 {[%clk 0:00:09]} 47. Rc6 {[%clk 0:00:07]}  Ke7 {[%clk 0:00:06]} 48. b5 {[%clk 0:00:03]}  Rd2 {[%clk 0:00:06]} 49. Kf3 {[%clk 0:00:03]}  Kd7 {[%clk 0:00:04]} 50. Ra6 {[%clk 0:00:00]}  Rd3+ {[%clk 0:00:04]} 0-1


[Site "https://www.chess.com"]

[Event "Titled Tuesday Blitz June 13 Early 2023"]
[White "Blackwhite017"]
[Black "Rosenberg, Evan S"]
[BlackFideId "2019299"]
[WhiteElo "2141"]
[BlackElo "2355"]
[Result "1/2-1/2"]
[Round "8"]
[TimeControl "180+2"]
[Date "2023.06.13"]
[WhiteClock "0:01:01"]
[BlackClock "0:00:52"]
[Board "147"]

1. e4 {[%clk 0:02:59]}  c5 {[%clk 0:02:59]} 2. Nf3 {[%clk 0:02:59]}  g6 {[%clk 0:02:59]} 3. d4 {[%clk 0:02:59]}  cxd4 {[%clk 0:02:59]} 4. Nxd4 {[%clk 0:03:00]}  Nf6 {[%clk 0:02:59]} 5. Nc3 {[%clk 0:03:00]}  Nc6 {[%clk 0:03:00]} 6. Be3 {[%clk 0:02:59]}  Bg7 {[%clk 0:02:59]} 7. Bc4 {[%clk 0:02:55]}  Qa5 {[%clk 0:02:53]} 8. O-O {[%clk 0:02:54]}  O-O {[%clk 0:02:52]} 9. Bb3 {[%clk 0:02:55]}  d6 {[%clk 0:02:46]} 10. h3 {[%clk 0:02:55]}  Bd7 {[%clk 0:02:39]} 11. Qd2 {[%clk 0:02:51]}  Rfe8 {[%clk 0:02:32]} 12. Rad1 {[%clk 0:02:48]}  Rac8 {[%clk 0:02:29]} 13. Rfe1 {[%clk 0:02:46]}  a6 {[%clk 0:02:29]} 14. f4 {[%clk 0:02:32]}  Nxd4 {[%clk 0:02:16]} 15. Bxd4 {[%clk 0:02:31]}  b5 {[%clk 0:02:05]} 16. Bxf6 {[%clk 0:02:09]}  Bxf6 {[%clk 0:01:55]} 17. Nd5 {[%clk 0:02:08]}  Qxd2 {[%clk 0:01:52]} 18. Nxf6+ {[%clk 0:02:08]}  exf6 {[%clk 0:01:53]} 19. Rxd2 {[%clk 0:02:07]}  Rc6 {[%clk 0:01:42]} 20. Kf2 {[%clk 0:01:59]}  a5 {[%clk 0:01:36]} 21. c3 {[%clk 0:01:57]}  a4 {[%clk 0:01:33]} 22. Bc2 {[%clk 0:01:57]}  a3 {[%clk 0:01:33]} 23. bxa3 {[%clk 0:01:49]}  Rxc3 {[%clk 0:01:33]} 24. Bb3 {[%clk 0:01:46]}  Be6 {[%clk 0:01:31]} 25. Re3 {[%clk 0:01:37]}  Rxe3 {[%clk 0:01:27]} 26. Kxe3 {[%clk 0:01:38]}  f5 {[%clk 0:01:19]} 27. Rxd6 {[%clk 0:01:24]}  Bxb3 {[%clk 0:01:00]} 28. axb3 {[%clk 0:01:25]}  Rxe4+ {[%clk 0:01:00]} 29. Kf3 {[%clk 0:01:22]}  Re1 {[%clk 0:00:56]} 30. Rd5 {[%clk 0:01:17]}  Ra1 {[%clk 0:00:55]} 31. Rxb5 {[%clk 0:01:17]}  Rxa3 {[%clk 0:00:55]} 32. Rb7 {[%clk 0:01:07]}  Kg7 {[%clk 0:00:55]} 33. g4 {[%clk 0:01:06]}  fxg4+ {[%clk 0:00:54]} 34. hxg4 {[%clk 0:01:07]}  h6 {[%clk 0:00:51]} 35. Ke4 {[%clk 0:01:03]}  Ra1 {[%clk 0:00:50]} 36. b4 {[%clk 0:01:01]}  Rg1 {[%clk 0:00:51]} 37. Kf3 {[%clk 0:01:01]}  Rf1+ {[%clk 0:00:51]} 38. Kg3 {[%clk 0:01:00]}  Rg1+ {[%clk 0:00:51]} 39. Kf3 {[%clk 0:01:00]}  Rf1+ {[%clk 0:00:52]} 40. Kg3 {[%clk 0:01:00]}  Rg1+ {[%clk 0:00:52]} 41. Kf3 {[%clk 0:01:01]} 1/2-1/2


[Site "https://www.chess.com"]

[Event "Titled Tuesday Blitz June 13 Early 2023"]
[White "Rian, Kapriaga"]
[Black "Sanchez, Robert"]
[WhiteFideId "7103263"]
[BlackFideId "2034360"]
[WhiteElo "2347"]
[BlackElo "1924"]
[Result "1-0"]
[Round "8"]
[TimeControl "180+2"]
[Date "2023.06.13"]
[WhiteClock "0:00:02"]
[BlackClock "0:00:00"]
[Board "148"]

1. d4 {[%clk 0:03:00]}  Nf6 {[%clk 0:02:56]} 2. Nf3 {[%clk 0:03:00]}  g6 {[%clk 0:02:56]} 3. e3 {[%clk 0:03:00]}  Bg7 {[%clk 0:02:57]} 4. b3 {[%clk 0:03:00]}  O-O {[%clk 0:02:58]} 5. Bb2 {[%clk 0:02:59]}  d6 {[%clk 0:02:58]} 6. Nbd2 {[%clk 0:02:59]}  Nbd7 {[%clk 0:02:59]} 7. Be2 {[%clk 0:02:59]}  Re8 {[%clk 0:02:59]} 8. O-O {[%clk 0:02:59]}  e5 {[%clk 0:02:59]} 9. dxe5 {[%clk 0:02:58]}  dxe5 {[%clk 0:02:59]} 10. c4 {[%clk 0:02:58]}  Qe7 {[%clk 0:02:56]} 11. Qc2 {[%clk 0:02:57]}  h6 {[%clk 0:02:48]} 12. Rfd1 {[%clk 0:02:56]}  Nc5 {[%clk 0:02:27]} 13. e4 {[%clk 0:02:35]}  Nh5 {[%clk 0:02:14]} 14. g3 {[%clk 0:02:27]}  f5 {[%clk 0:02:11]} 15. b4 {[%clk 0:02:22]}  Na6 {[%clk 0:02:03]} 16. a3 {[%clk 0:02:20]}  f4 {[%clk 0:02:02]} 17. c5 {[%clk 0:02:15]}  c6 {[%clk 0:01:59]} 18. Nc4 {[%clk 0:02:13]}  Bg4 {[%clk 0:01:53]} 19. Nfxe5 {[%clk 0:02:09]}  Bxe2 {[%clk 0:01:52]} 20. Qxe2 {[%clk 0:02:08]}  fxg3 {[%clk 0:01:42]} 21. hxg3 {[%clk 0:02:08]}  Qg5 {[%clk 0:01:39]} 22. Nf3 {[%clk 0:02:02]}  Qg4 {[%clk 0:01:23]} 23. Bxg7 {[%clk 0:02:01]}  Kxg7 {[%clk 0:01:16]} 24. Qb2+ {[%clk 0:01:43]}  Kg8 {[%clk 0:01:08]} 25. Nfe5 {[%clk 0:01:36]}  Qxe4 {[%clk 0:01:00]} 26. Rd7 {[%clk 0:01:28]}  Rad8 {[%clk 0:00:32]} 27. Rad1 {[%clk 0:01:26]}  Rxd7 {[%clk 0:00:33]} 28. Rxd7 {[%clk 0:01:26]}  Nf6 {[%clk 0:00:30]} 29. Rxb7 {[%clk 0:01:18]}  Qe1+ {[%clk 0:00:21]} 30. Kh2 {[%clk 0:01:15]}  h5 {[%clk 0:00:20]} 31. Nxg6 {[%clk 0:01:09]}  Ng4+ {[%clk 0:00:19]} 32. Kg2 {[%clk 0:01:00]}  Qe4+ {[%clk 0:00:18]} 33. f3 {[%clk 0:01:00]}  Qxg6 {[%clk 0:00:15]} 34. Nd6 {[%clk 0:00:23]}  Ne3+ {[%clk 0:00:08]} 35. Kh3 {[%clk 0:00:11]}  Qe6+ {[%clk 0:00:06]} 36. Kh2 {[%clk 0:00:08]}  Nf1+ {[%clk 0:00:04]} 37. Kg1 {[%clk 0:00:07]}  Qg6 {[%clk 0:00:02]} 38. Kxf1 {[%clk 0:00:04]}  Rf8 {[%clk 0:00:01]} 39. Qb3+ {[%clk 0:00:02]}  Kh8 {[%clk 0:00:00]} 40. Qc3+ {[%clk 0:00:02]} 1-0


[Site "https://www.chess.com"]